[Event "Titled Tuesday Blitz May 10 Early 2022"]
[White "Golubova, Anna"]
[Black "Samant Aditya S"]
[WhiteFideId "24173606"]
[BlackFideId "35080580"]
[WhiteElo "2083"]
[BlackElo "1916"]
[Result "0-1"]
[Round "01"]
[TimeControl "180+1"]
[Date "2022.05.11"]
[WhiteClock "0:00:08"]
[BlackClock "0:00:16"]

1. d4 {[%clk 0:02:52]}  Nf6 {[%clk 0:02:59]} 2. Bf4 {[%clk 0:02:52]}  d5 {[%clk 0:02:58]} 3. e3 {[%clk 0:02:52]}  c5 {[%clk 0:02:58]} 4. c3 {[%clk 0:02:52]}  Nc6 {[%clk 0:02:54]} 5. Nd2 {[%clk 0:02:52]}  e6 {[%clk 0:02:38]} 6. Ngf3 {[%clk 0:02:50]}  cxd4 {[%clk 0:02:38]} 7. exd4 {[%clk 0:02:50]}  Nh5 {[%clk 0:02:38]} 8. Bg5 {[%clk 0:02:48]}  f6 {[%clk 0:02:36]} 9. Be3 {[%clk 0:02:47]}  Bd6 {[%clk 0:02:37]} 10. g3 {[%clk 0:02:23]}  O-O {[%clk 0:02:25]} 11. Be2 {[%clk 0:02:22]}  f5 {[%clk 0:02:16]} 12. Ne5 {[%clk 0:02:11]}  f4 {[%clk 0:02:04]} 13. Nxc6 {[%clk 0:01:55]}  bxc6 {[%clk 0:02:05]} 14. Bxh5 {[%clk 0:01:52]}  fxe3 {[%clk 0:02:05]} 15. fxe3 {[%clk 0:01:52]}  Rb8 {[%clk 0:01:46]} 16. Rb1 {[%clk 0:01:24]}  Qg5 {[%clk 0:01:28]} 17. Qe2 {[%clk 0:01:23]}  e5 {[%clk 0:01:28]} 18. Bf3 {[%clk 0:01:02]}  e4 {[%clk 0:01:15]} 19. Bxe4 {[%clk 0:00:32]}  dxe4 {[%clk 0:01:15]} 20. Nxe4 {[%clk 0:00:33]}  Qd5 {[%clk 0:01:09]} 21. Nf2 {[%clk 0:00:27]}  Qxa2 {[%clk 0:00:48]} 22. O-O {[%clk 0:00:26]}  Ba6 {[%clk 0:00:47]} 23. Nd3 {[%clk 0:00:19]}  Qc4 {[%clk 0:00:32]} 24. Rfd1 {[%clk 0:00:17]}  Rbe8 {[%clk 0:00:30]} 25. e4 {[%clk 0:00:17]}  c5 {[%clk 0:00:24]} 26. Qe3 {[%clk 0:00:12]}  cxd4 {[%clk 0:00:20]} 27. cxd4 {[%clk 0:00:13]}  Qb3 {[%clk 0:00:18]} 28. e5 {[%clk 0:00:13]}  Bc7 {[%clk 0:00:18]} 29. Qd2 {[%clk 0:00:13]}  Bb6 {[%clk 0:00:17]} 30. Nf4 {[%clk 0:00:13]}  Rd8 {[%clk 0:00:16]} 31. e6 {[%clk 0:00:12]}  Rxd4 {[%clk 0:00:14]} 32. Qxd4 {[%clk 0:00:08]}  Bxd4+ {[%clk 0:00:15]} 33. Rxd4 {[%clk 0:00:08]}  Qe3+ {[%clk 0:00:16]} 0-1


[Site "https://www.chess.com"]

[Event "Titled Tuesday Blitz May 10 Early 2022"]
[White "Alekseenko, Kirill"]
[Black "Guliev, Logman"]
[WhiteFideId "4135539"]
[BlackFideId "13400061"]
[WhiteElo "2682"]
[BlackElo "2128"]
[Result "1-0"]
[Round "01"]
[TimeControl "180+1"]
[Date "2022.05.10"]
[WhiteClock "0:01:02"]
[BlackClock "0:00:03"]

1. e4 {[%clk 0:02:57]}  c5 {[%clk 0:02:58]} 2. Nf3 {[%clk 0:02:57]}  d6 {[%clk 0:02:59]} 3. d4 {[%clk 0:02:58]}  cxd4 {[%clk 0:02:59]} 4. Nxd4 {[%clk 0:02:59]}  Nf6 {[%clk 0:03:00]} 5. Nc3 {[%clk 0:02:59]}  Nc6 {[%clk 0:03:00]} 6. Be2 {[%clk 0:02:57]}  e5 {[%clk 0:02:59]} 7. Nb3 {[%clk 0:02:56]}  Be7 {[%clk 0:02:59]} 8. O-O {[%clk 0:02:56]}  O-O {[%clk 0:02:59]} 9. Bg5 {[%clk 0:02:56]}  Be6 {[%clk 0:02:59]} 10. Bxf6 {[%clk 0:02:55]}  Bxf6 {[%clk 0:02:59]} 11. Nd5 {[%clk 0:02:56]}  Bxd5 {[%clk 0:02:48]} 12. Qxd5 {[%clk 0:02:57]}  Qc7 {[%clk 0:02:48]} 13. c3 {[%clk 0:02:57]}  Rfd8 {[%clk 0:02:47]} 14. Rad1 {[%clk 0:02:55]}  Ne7 {[%clk 0:02:40]} 15. Qc4 {[%clk 0:02:51]}  Qb6 {[%clk 0:02:28]} 16. Bf3 {[%clk 0:02:20]}  Rac8 {[%clk 0:02:19]} 17. Qa4 {[%clk 0:02:16]}  a6 {[%clk 0:02:16]} 18. g3 {[%clk 0:02:15]}  Qc6 {[%clk 0:01:58]} 19. Qb4 {[%clk 0:02:07]}  b5 {[%clk 0:01:44]} 20. Nd2 {[%clk 0:01:53]}  Qb6 {[%clk 0:01:16]} 21. Qb3 {[%clk 0:01:53]}  a5 {[%clk 0:01:13]} 22. a3 {[%clk 0:01:51]}  a4 {[%clk 0:01:09]} 23. Qa2 {[%clk 0:01:51]}  Qc5 {[%clk 0:01:07]} 24. Rfe1 {[%clk 0:01:51]}  Bg5 {[%clk 0:01:03]} 25. Nf1 {[%clk 0:01:51]}  g6 {[%clk 0:01:00]} 26. h4 {[%clk 0:01:49]}  Bh6 {[%clk 0:01:00]} 27. Nh2 {[%clk 0:01:50]}  Bg7 {[%clk 0:00:45]} 28. Ng4 {[%clk 0:01:50]}  Qc4 {[%clk 0:00:44]} 29. Qb1 {[%clk 0:01:48]}  h5 {[%clk 0:00:35]} 30. Ne3 {[%clk 0:01:48]}  Qc5 {[%clk 0:00:34]} 31. Nd5 {[%clk 0:01:48]}  Nxd5 {[%clk 0:00:32]} 32. Rxd5 {[%clk 0:01:49]}  Qc6 {[%clk 0:00:31]} 33. Red1 {[%clk 0:01:48]}  Kh7 {[%clk 0:00:30]} 34. Be2 {[%clk 0:01:47]}  Rb8 {[%clk 0:00:29]} 35. Qd3 {[%clk 0:01:48]}  Rb6 {[%clk 0:00:25]} 36. Qf3 {[%clk 0:01:27]}  Kg8 {[%clk 0:00:24]} 37. Bd3 {[%clk 0:01:27]}  Rf8 {[%clk 0:00:19]} 38. Bb1 {[%clk 0:01:26]}  Qc7 {[%clk 0:00:16]} 39. Ba2 {[%clk 0:01:25]}  Rd8 {[%clk 0:00:15]} 40. R5d3 {[%clk 0:01:25]}  Rf8 {[%clk 0:00:13]} 41. Kh1 {[%clk 0:01:25]}  Kh7 {[%clk 0:00:13]} 42. Qe2 {[%clk 0:01:22]}  f5 {[%clk 0:00:13]} 43. exf5 {[%clk 0:01:22]}  Rxf5 {[%clk 0:00:12]} 44. Bd5 {[%clk 0:01:21]}  Rb8 {[%clk 0:00:11]} 45. Be4 {[%clk 0:01:22]}  Rf6 {[%clk 0:00:11]} 46. Qxh5+ {[%clk 0:01:22]}  Kg8 {[%clk 0:00:11]} 47. Bxg6 {[%clk 0:01:20]}  Qc6+ {[%clk 0:00:09]} 48. Kg1 {[%clk 0:01:12]}  Qc5 {[%clk 0:00:07]} 49. Rf3 {[%clk 0:01:05]}  Rxf3 {[%clk 0:00:04]} 50. Bh7+ {[%clk 0:01:06]}  Kh8 {[%clk 0:00:03]} 51. Bf5+ {[%clk 0:01:02]}  Kg8 {[%clk 0:00:04]} 52. Be6+ {[%clk 0:01:02]}  Kf8 {[%clk 0:00:03]} 53. Qxf3+ {[%clk 0:01:02]} 1-0


[Site "https://www.chess.com"]

[Event "Titled Tuesday Blitz May 10 Early 2022"]
[White "Andreikin, Dmitry"]
[Black "Vusatiuk, Vladimir"]
[WhiteFideId "4158814"]
[BlackFideId "14118610"]
[WhiteElo "2736"]
[BlackElo "2157"]
[Result "1-0"]
[Round "01"]
[TimeControl "180+1"]
[Date "2022.05.10"]
[WhiteClock "0:02:07"]
[BlackClock "0:00:06"]

1. d4 {[%clk 0:03:00]}  Nf6 {[%clk 0:02:59]} 2. c4 {[%clk 0:03:00]}  e6 {[%clk 0:02:59]} 3. Nf3 {[%clk 0:02:59]}  a6 {[%clk 0:02:55]} 4. Nc3 {[%clk 0:02:56]}  d5 {[%clk 0:02:55]} 5. c5 {[%clk 0:02:52]}  b6 {[%clk 0:02:53]} 6. cxb6 {[%clk 0:02:53]}  cxb6 {[%clk 0:02:54]} 7. Bf4 {[%clk 0:02:52]}  Bd6 {[%clk 0:02:54]} 8. Bg3 {[%clk 0:02:52]}  O-O {[%clk 0:02:51]} 9. e3 {[%clk 0:02:53]}  Bb7 {[%clk 0:02:48]} 10. Bd3 {[%clk 0:02:52]}  Nc6 {[%clk 0:02:46]} 11. Rc1 {[%clk 0:02:51]}  Rc8 {[%clk 0:02:46]} 12. Bb1 {[%clk 0:02:51]}  Na5 {[%clk 0:02:37]} 13. Ne5 {[%clk 0:02:50]}  Nc4 {[%clk 0:02:36]} 14. Qe2 {[%clk 0:02:46]}  Qc7 {[%clk 0:01:43]} 15. f4 {[%clk 0:02:39]}  g6 {[%clk 0:00:48]} 16. O-O {[%clk 0:02:38]}  Qe7 {[%clk 0:00:39]} 17. Bh4 {[%clk 0:02:37]}  Qd8 {[%clk 0:00:31]} 18. b3 {[%clk 0:02:30]}  Na3 {[%clk 0:00:31]} 19. Bxf6 {[%clk 0:02:27]}  Qxf6 {[%clk 0:00:31]} 20. Nd7 {[%clk 0:02:28]}  Qe7 {[%clk 0:00:29]} 21. Nxf8 {[%clk 0:02:28]}  Nxb1 {[%clk 0:00:29]} 22. Nxg6 {[%clk 0:02:23]}  hxg6 {[%clk 0:00:26]} 23. Nxb1 {[%clk 0:02:23]}  Rd8 {[%clk 0:00:19]} 24. Nd2 {[%clk 0:02:23]}  Ba3 {[%clk 0:00:17]} 25. Rc2 {[%clk 0:02:22]}  Bd6 {[%clk 0:00:15]} 26. Nf3 {[%clk 0:02:22]}  f6 {[%clk 0:00:15]} 27. Ne5 {[%clk 0:02:18]}  fxe5 {[%clk 0:00:14]} 28. fxe5 {[%clk 0:02:19]}  Bb4 {[%clk 0:00:14]} 29. Qg4 {[%clk 0:02:19]}  Kh7 {[%clk 0:00:10]} 30. Rf6 {[%clk 0:02:16]}  Rg8 {[%clk 0:00:10]} 31. Rxe6 {[%clk 0:02:16]}  Qd7 {[%clk 0:00:11]} 32. Qh4+ {[%clk 0:02:15]}  Kg7 {[%clk 0:00:11]} 33. Rxb6 {[%clk 0:02:14]}  Be7 {[%clk 0:00:09]} 34. e6 {[%clk 0:02:08]}  Qd8 {[%clk 0:00:06]} 35. Rxb7 {[%clk 0:02:07]} 1-0


[Site "https://www.chess.com"]

[Event "Titled Tuesday Blitz May 10 Early 2022"]
[White "Arias, Juan Cruz"]
[Black "Nugumanov, Bakhtiyar"]
[WhiteFideId "118540"]
[BlackFideId "13701797"]
[WhiteElo "2091"]
[BlackElo "2262"]
[Result "1-0"]
[Round "01"]
[TimeControl "180+1"]
[Date "2022.05.11"]
[WhiteClock "0:01:20"]
[BlackClock "0:00:10"]

1. d4 {[%clk 0:02:53]}  d5 {[%clk 0:02:56]} 2. Nc3 {[%clk 0:02:49]}  e6 {[%clk 0:02:51]} 3. e4 {[%clk 0:02:46]}  Bb4 {[%clk 0:02:44]} 4. exd5 {[%clk 0:02:44]}  exd5 {[%clk 0:02:43]} 5. Qf3 {[%clk 0:02:43]}  Ne7 {[%clk 0:02:28]} 6. Bd3 {[%clk 0:02:42]}  O-O {[%clk 0:02:17]} 7. Ne2 {[%clk 0:02:40]}  c5 {[%clk 0:02:13]} 8. dxc5 {[%clk 0:02:31]}  Bxc5 {[%clk 0:01:46]} 9. O-O {[%clk 0:02:29]}  Nbc6 {[%clk 0:01:45]} 10. Bf4 {[%clk 0:02:24]}  Ng6 {[%clk 0:01:40]} 11. Qxd5 {[%clk 0:02:21]}  Nxf4 {[%clk 0:01:29]} 12. Nxf4 {[%clk 0:02:20]}  Qh4 {[%clk 0:01:01]} 13. Qxc5 {[%clk 0:02:11]}  Qxf4 {[%clk 0:01:00]} 14. Rfe1 {[%clk 0:02:06]}  Be6 {[%clk 0:00:54]} 15. Rad1 {[%clk 0:02:00]}  Rad8 {[%clk 0:00:50]} 16. Qe3 {[%clk 0:01:55]}  Qf6 {[%clk 0:00:44]} 17. a3 {[%clk 0:01:50]}  Rfe8 {[%clk 0:00:38]} 18. Qg3 {[%clk 0:01:49]}  h6 {[%clk 0:00:30]} 19. h3 {[%clk 0:01:44]}  Nd4 {[%clk 0:00:25]} 20. Ne4 {[%clk 0:01:41]}  Qe7 {[%clk 0:00:22]} 21. Nd2 {[%clk 0:01:33]}  Qc5 {[%clk 0:00:14]} 22. Ne4 {[%clk 0:01:20]}  Qb6 {[%clk 0:00:10]} 23. Nf6+ {[%clk 0:01:20]} 1-0


[Site "https://www.chess.com"]

[Event "Titled Tuesday Blitz May 10 Early 2022"]
[White "Atakhan, Abtin"]
[Black "Sahil, Tickoo"]
[WhiteFideId "22502203"]
[BlackFideId "5019710"]
[WhiteElo "2094"]
[BlackElo "2099"]
[Result "0-1"]
[Round "01"]
[TimeControl "180+1"]
[Date "2022.05.11"]
[WhiteClock "0:00:02"]
[BlackClock "0:00:08"]

1. c4 {[%clk 0:02:55]}  e6 {[%clk 0:02:58]} 2. Nf3 {[%clk 0:02:54]}  d5 {[%clk 0:02:58]} 3. g3 {[%clk 0:02:55]}  Nf6 {[%clk 0:02:58]} 4. Bg2 {[%clk 0:02:54]}  dxc4 {[%clk 0:02:57]} 5. O-O {[%clk 0:02:52]}  Nbd7 {[%clk 0:02:56]} 6. Qa4 {[%clk 0:02:47]}  a6 {[%clk 0:02:52]} 7. Nc3 {[%clk 0:02:39]}  Rb8 {[%clk 0:02:45]} 8. Qxc4 {[%clk 0:02:37]}  b5 {[%clk 0:02:40]} 9. Qb3 {[%clk 0:02:35]}  Bb7 {[%clk 0:02:38]} 10. d3 {[%clk 0:02:32]}  Be7 {[%clk 0:02:35]} 11. Bf4 {[%clk 0:02:30]}  O-O {[%clk 0:02:32]} 12. Rfc1 {[%clk 0:02:28]}  Bd6 {[%clk 0:02:23]} 13. Bxd6 {[%clk 0:02:25]}  cxd6 {[%clk 0:02:24]} 14. d4 {[%clk 0:02:22]}  Qe7 {[%clk 0:02:14]} 15. e3 {[%clk 0:02:19]}  Rfc8 {[%clk 0:02:13]} 16. Nd2 {[%clk 0:02:14]}  Bxg2 {[%clk 0:02:10]} 17. Kxg2 {[%clk 0:02:15]}  Nb6 {[%clk 0:02:05]} 18. Ne2 {[%clk 0:02:07]}  Qb7+ {[%clk 0:02:03]} 19. Kg1 {[%clk 0:02:06]}  Ne4 {[%clk 0:01:56]} 20. Nxe4 {[%clk 0:01:55]}  Qxe4 {[%clk 0:01:57]} 21. Rxc8+ {[%clk 0:01:48]}  Rxc8 {[%clk 0:01:56]} 22. Rc1 {[%clk 0:01:48]}  Rxc1+ {[%clk 0:01:45]} 23. Nxc1 {[%clk 0:01:49]}  Qc6 {[%clk 0:01:45]} 24. Qd1 {[%clk 0:01:39]}  g6 {[%clk 0:01:41]} 25. Nd3 {[%clk 0:01:36]}  Qc4 {[%clk 0:01:34]} 26. b3 {[%clk 0:01:34]}  Qc3 {[%clk 0:01:32]} 27. Nf4 {[%clk 0:01:31]}  Nd5 {[%clk 0:01:13]} 28. Nxd5 {[%clk 0:01:26]}  exd5 {[%clk 0:01:14]} 29. Qe2 {[%clk 0:01:18]}  Kg7 {[%clk 0:01:05]} 30. Kg2 {[%clk 0:01:17]}  h5 {[%clk 0:01:05]} 31. h4 {[%clk 0:01:17]}  Qa1 {[%clk 0:01:02]} 32. Qc2 {[%clk 0:01:16]}  b4 {[%clk 0:00:52]} 33. Qe2 {[%clk 0:00:35]}  a5 {[%clk 0:00:48]} 34. Qc2 {[%clk 0:00:35]}  Qc3 {[%clk 0:00:46]} 35. Qb1 {[%clk 0:00:33]}  Qd2 {[%clk 0:00:42]} 36. Qa1 {[%clk 0:00:30]}  Qc2 {[%clk 0:00:39]} 37. Kf3 {[%clk 0:00:23]}  Qe4+ {[%clk 0:00:37]} 38. Ke2 {[%clk 0:00:22]}  Qc2+ {[%clk 0:00:36]} 39. Ke1 {[%clk 0:00:21]}  Kf6 {[%clk 0:00:33]} 40. Qd1 {[%clk 0:00:19]}  Qxa2 {[%clk 0:00:29]} 41. Qf3+ {[%clk 0:00:17]}  Kg7 {[%clk 0:00:29]} 42. Qxd5 {[%clk 0:00:16]}  a4 {[%clk 0:00:19]} 43. Qxd6 {[%clk 0:00:17]}  Qxb3 {[%clk 0:00:17]} 44. Qe5+ {[%clk 0:00:15]}  Kg8 {[%clk 0:00:14]} 45. Qb8+ {[%clk 0:00:14]}  Kh7 {[%clk 0:00:13]} 46. d5 {[%clk 0:00:12]}  a3 {[%clk 0:00:12]} 47. Qb7 {[%clk 0:00:11]}  Kg7 {[%clk 0:00:10]} 48. Qe7 {[%clk 0:00:03]}  Qc3+ {[%clk 0:00:09]} 49. Kf1 {[%clk 0:00:03]}  a2 {[%clk 0:00:09]} 50. Kg2 {[%clk 0:00:03]}  a1=Q {[%clk 0:00:09]} 51. d6 {[%clk 0:00:04]}  Qf6 {[%clk 0:00:08]} 52. Qe8 {[%clk 0:00:01]}  Qab2 {[%clk 0:00:08]} 53. d7 {[%clk 0:00:02]}  Qbxf2+ {[%clk 0:00:08]} 0-1


[Site "https://www.chess.com"]

[Event "Titled Tuesday Blitz May 10 Early 2022"]
[White "Azarov, Sergei"]
[Black "Horak, Martin"]
[WhiteFideId "13501470"]
[BlackFideId "367095"]
[WhiteElo "2494"]
[BlackElo "1997"]
[Result "1-0"]
[Round "01"]
[TimeControl "180+1"]
[Date "2022.05.10"]
[WhiteClock "0:00:35"]
[BlackClock "0:00:19"]

1. e4 {[%clk 0:02:59]}  c5 {[%clk 0:02:59]} 2. Nf3 {[%clk 0:02:59]}  e6 {[%clk 0:02:59]} 3. d4 {[%clk 0:02:59]}  cxd4 {[%clk 0:03:00]} 4. Nxd4 {[%clk 0:03:00]}  Nc6 {[%clk 0:03:00]} 5. Nc3 {[%clk 0:03:00]}  Qc7 {[%clk 0:03:00]} 6. Be2 {[%clk 0:03:00]}  a6 {[%clk 0:02:59]} 7. O-O {[%clk 0:03:00]}  Nf6 {[%clk 0:03:00]} 8. Be3 {[%clk 0:03:00]}  Be7 {[%clk 0:02:58]} 9. f4 {[%clk 0:03:00]}  d6 {[%clk 0:02:58]} 10. Qe1 {[%clk 0:03:01]}  O-O {[%clk 0:02:55]} 11. Kh1 {[%clk 0:03:00]}  b5 {[%clk 0:02:29]} 12. Nxc6 {[%clk 0:02:56]}  Qxc6 {[%clk 0:02:30]} 13. e5 {[%clk 0:02:57]}  Nd5 {[%clk 0:02:18]} 14. Nxd5 {[%clk 0:02:56]}  exd5 {[%clk 0:02:17]} 15. Bd3 {[%clk 0:02:55]}  dxe5 {[%clk 0:02:07]} 16. fxe5 {[%clk 0:02:55]}  d4 {[%clk 0:01:53]} 17. Bxd4 {[%clk 0:02:46]}  Bb7 {[%clk 0:01:44]} 18. Qg3 {[%clk 0:02:41]}  Rad8 {[%clk 0:01:18]} 19. c3 {[%clk 0:02:33]}  Bc5 {[%clk 0:01:12]} 20. Rf4 {[%clk 0:01:54]}  Bxd4 {[%clk 0:01:09]} 21. cxd4 {[%clk 0:01:53]}  g6 {[%clk 0:01:01]} 22. Raf1 {[%clk 0:01:51]}  Rd7 {[%clk 0:00:56]} 23. Rf6 {[%clk 0:01:41]}  Qxg2+ {[%clk 0:00:38]} 24. Qxg2 {[%clk 0:01:40]}  Bxg2+ {[%clk 0:00:39]} 25. Kxg2 {[%clk 0:01:40]}  Rxd4 {[%clk 0:00:40]} 26. Bc2 {[%clk 0:01:39]}  Rd5 {[%clk 0:00:34]} 27. Bb3 {[%clk 0:01:20]}  Rxe5 {[%clk 0:00:33]} 28. Rxf7 {[%clk 0:01:17]}  Rxf7 {[%clk 0:00:34]} 29. Rxf7 {[%clk 0:01:15]}  Kh8 {[%clk 0:00:35]} 30. Kf3 {[%clk 0:01:06]}  a5 {[%clk 0:00:32]} 31. Bc2 {[%clk 0:00:58]}  Rh5 {[%clk 0:00:29]} 32. Kg2 {[%clk 0:00:53]}  Rd5 {[%clk 0:00:28]} 33. Be4 {[%clk 0:00:50]}  Rd4 {[%clk 0:00:27]} 34. Bc6 {[%clk 0:00:37]}  Rb4 {[%clk 0:00:24]} 35. b3 {[%clk 0:00:36]}  a4 {[%clk 0:00:22]} 36. Rf3 {[%clk 0:00:36]}  Kg7 {[%clk 0:00:19]} 37. bxa4 {[%clk 0:00:34]}  bxa4 {[%clk 0:00:19]} 38. Ra3 {[%clk 0:00:35]} 1-0


[Site "https://www.chess.com"]

[Event "Titled Tuesday Blitz May 10 Early 2022"]
[White "Baches Garcia, Guillermo"]
[Black "Suleymanli, Aydin"]
[WhiteFideId "2209764"]
[BlackFideId "13413937"]
[WhiteElo "2500"]
[BlackElo "2481"]
[Result "1/2-1/2"]
[Round "01"]
[TimeControl "180+1"]
[Date "2022.05.10"]
[WhiteClock "0:00:07"]
[BlackClock "0:00:11"]

1. e4 {[%clk 0:02:58]}  c5 {[%clk 0:02:56]} 2. Nf3 {[%clk 0:02:57]}  Nc6 {[%clk 0:02:55]} 3. d4 {[%clk 0:02:56]}  cxd4 {[%clk 0:02:56]} 4. Nxd4 {[%clk 0:02:56]}  Qb6 {[%clk 0:02:54]} 5. Nb3 {[%clk 0:02:56]}  Nf6 {[%clk 0:02:53]} 6. Nc3 {[%clk 0:02:56]}  e6 {[%clk 0:02:51]} 7. Qe2 {[%clk 0:02:56]}  d6 {[%clk 0:02:48]} 8. g4 {[%clk 0:02:54]}  h6 {[%clk 0:02:46]} 9. h4 {[%clk 0:02:51]}  Be7 {[%clk 0:02:29]} 10. Bg2 {[%clk 0:02:46]}  Ne5 {[%clk 0:02:26]} 11. g5 {[%clk 0:02:43]}  hxg5 {[%clk 0:02:26]} 12. hxg5 {[%clk 0:02:44]}  Rxh1+ {[%clk 0:02:26]} 13. Bxh1 {[%clk 0:02:44]}  Nfg4 {[%clk 0:02:24]} 14. Bg2 {[%clk 0:02:16]}  Bd7 {[%clk 0:02:16]} 15. Bh3 {[%clk 0:02:11]}  Nh2 {[%clk 0:02:14]} 16. Be3 {[%clk 0:01:30]}  Nef3+ {[%clk 0:02:10]} 17. Kd1 {[%clk 0:01:29]}  Qc7 {[%clk 0:01:57]} 18. Bg2 {[%clk 0:01:26]}  Ne5 {[%clk 0:01:55]} 19. f4 {[%clk 0:01:18]}  Neg4 {[%clk 0:01:49]} 20. Bg1 {[%clk 0:01:17]}  d5 {[%clk 0:01:45]} 21. e5 {[%clk 0:01:13]}  d4 {[%clk 0:01:31]} 22. Nxd4 {[%clk 0:01:07]}  Bc5 {[%clk 0:01:31]} 23. Ne4 {[%clk 0:01:00]}  Rd8 {[%clk 0:01:25]} 24. Nxc5 {[%clk 0:00:47]}  Qxc5 {[%clk 0:01:26]} 25. c3 {[%clk 0:00:46]}  Ba4+ {[%clk 0:01:24]} 26. Ke1 {[%clk 0:00:39]}  Rxd4 {[%clk 0:00:44]} 27. Bxd4 {[%clk 0:00:37]}  Qa5 {[%clk 0:00:40]} 28. Bh3 {[%clk 0:00:34]}  Bb5 {[%clk 0:00:40]} 29. Qd1 {[%clk 0:00:29]}  Ba4 {[%clk 0:00:12]} 30. b3 {[%clk 0:00:26]}  Ne3 {[%clk 0:00:08]} 31. Qd3 {[%clk 0:00:17]}  Bc6 {[%clk 0:00:03]} 32. Qxe3 {[%clk 0:00:15]}  Nf3+ {[%clk 0:00:04]} 33. Kf2 {[%clk 0:00:15]}  Nh4 {[%clk 0:00:05]} 34. Bf1 {[%clk 0:00:12]}  Qd5 {[%clk 0:00:04]} 35. Qg3 {[%clk 0:00:10]}  Qh1 {[%clk 0:00:03]} 36. Re1 {[%clk 0:00:08]}  Nf5 {[%clk 0:00:03]} 37. Bg2 {[%clk 0:00:06]}  Qxe1+ {[%clk 0:00:02]} 38. Kxe1 {[%clk 0:00:06]}  Nxg3 {[%clk 0:00:03]} 39. Bxc6+ {[%clk 0:00:06]}  bxc6 {[%clk 0:00:03]} 40. Bxa7 {[%clk 0:00:06]}  Ne4 {[%clk 0:00:04]} 41. Bd4 {[%clk 0:00:05]}  c5 {[%clk 0:00:04]} 42. Be3 {[%clk 0:00:05]}  Kd7 {[%clk 0:00:04]} 43. c4 {[%clk 0:00:05]}  Kc6 {[%clk 0:00:04]} 44. Kd1 {[%clk 0:00:04]}  Nc3+ {[%clk 0:00:05]} 45. Kc2 {[%clk 0:00:04]}  Nxa2 {[%clk 0:00:06]} 46. Bd2 {[%clk 0:00:04]}  Nb4+ {[%clk 0:00:06]} 47. Bxb4 {[%clk 0:00:04]}  cxb4 {[%clk 0:00:07]} 48. Kd3 {[%clk 0:00:04]}  Kc5 {[%clk 0:00:08]} 49. Ke3 {[%clk 0:00:04]}  g6 {[%clk 0:00:08]} 50. Kd3 {[%clk 0:00:05]}  Kb6 {[%clk 0:00:05]} 51. Kd4 {[%clk 0:00:05]}  Kc6 {[%clk 0:00:06]} 52. Ke4 {[%clk 0:00:05]}  Kc5 {[%clk 0:00:06]} 53. Ke3 {[%clk 0:00:05]}  Kb6 {[%clk 0:00:06]} 54. Kd4 {[%clk 0:00:06]}  Kc6 {[%clk 0:00:07]} 55. c5 {[%clk 0:00:06]}  Kb5 {[%clk 0:00:07]} 56. Ke4 {[%clk 0:00:06]}  Kxc5 {[%clk 0:00:08]} 57. Kd3 {[%clk 0:00:06]}  Kd5 {[%clk 0:00:08]} 58. Ke3 {[%clk 0:00:06]}  Kc5 {[%clk 0:00:09]} 59. Kd3 {[%clk 0:00:07]}  Kd5 {[%clk 0:00:10]} 60. Ke3 {[%clk 0:00:07]}  Kc6 {[%clk 0:00:10]} 61. Kd4 {[%clk 0:00:07]}  Kb5 {[%clk 0:00:10]} 62. Ke3 {[%clk 0:00:06]}  Kc5 {[%clk 0:00:11]} 63. Kd3 {[%clk 0:00:07]} 1/2-1/2


[Site "https://www.chess.com"]

[Event "Titled Tuesday Blitz May 10 Early 2022"]
[White "Ballester Llagaria, Luis Eduardo"]
[Black "Trimitzios, Petros"]
[WhiteFideId "2297620"]
[BlackFideId "25808796"]
[WhiteElo "2344"]
[BlackElo "2049"]
[Result "0-1"]
[Round "01"]
[TimeControl "180+1"]
[Date "2022.05.11"]
[WhiteClock "0:00:26"]
[BlackClock "0:01:49"]

1. e4 {[%clk 0:02:59]}  e5 {[%clk 0:02:58]} 2. Nf3 {[%clk 0:02:59]}  Nc6 {[%clk 0:02:58]} 3. Bc4 {[%clk 0:02:57]}  Bc5 {[%clk 0:02:58]} 4. O-O {[%clk 0:02:56]}  d6 {[%clk 0:02:58]} 5. d3 {[%clk 0:02:55]}  h6 {[%clk 0:02:58]} 6. c3 {[%clk 0:02:52]}  Nf6 {[%clk 0:02:59]} 7. b4 {[%clk 0:02:43]}  Bb6 {[%clk 0:02:58]} 8. a4 {[%clk 0:02:44]}  a6 {[%clk 0:02:58]} 9. Nbd2 {[%clk 0:02:41]}  Be6 {[%clk 0:02:58]} 10. h3 {[%clk 0:02:30]}  O-O {[%clk 0:02:57]} 11. Re1 {[%clk 0:02:29]}  Re8 {[%clk 0:02:55]} 12. Bxe6 {[%clk 0:02:21]}  fxe6 {[%clk 0:02:54]} 13. Nf1 {[%clk 0:02:19]}  Rf8 {[%clk 0:02:54]} 14. Be3 {[%clk 0:02:17]}  Bxe3 {[%clk 0:02:53]} 15. Nxe3 {[%clk 0:02:13]}  Ne7 {[%clk 0:02:53]} 16. Qb3 {[%clk 0:02:09]}  Qd7 {[%clk 0:02:51]} 17. d4 {[%clk 0:01:39]}  exd4 {[%clk 0:02:50]} 18. Nxd4 {[%clk 0:01:36]}  d5 {[%clk 0:02:48]} 19. exd5 {[%clk 0:01:34]}  exd5 {[%clk 0:02:49]} 20. c4 {[%clk 0:01:27]}  c6 {[%clk 0:02:48]} 21. cxd5 {[%clk 0:01:24]}  Nexd5 {[%clk 0:02:49]} 22. b5 {[%clk 0:01:19]}  Kh8 {[%clk 0:02:47]} 23. bxc6 {[%clk 0:01:11]}  bxc6 {[%clk 0:02:48]} 24. Nxd5 {[%clk 0:01:09]}  Nxd5 {[%clk 0:02:49]} 25. Qc4 {[%clk 0:01:03]}  Rf6 {[%clk 0:02:45]} 26. Rac1 {[%clk 0:00:59]}  Ne7 {[%clk 0:02:39]} 27. Nb3 {[%clk 0:00:53]}  a5 {[%clk 0:02:29]} 28. Nc5 {[%clk 0:00:52]}  Qa7 {[%clk 0:02:25]} 29. Rcd1 {[%clk 0:00:50]}  Nd5 {[%clk 0:02:23]} 30. Ne4 {[%clk 0:00:45]}  Re6 {[%clk 0:02:18]} 31. Nc5 {[%clk 0:00:41]}  Re7 {[%clk 0:02:12]} 32. Rxe7 {[%clk 0:00:40]}  Qxe7 {[%clk 0:02:13]} 33. Ne4 {[%clk 0:00:34]}  Qe6 {[%clk 0:02:12]} 34. Nc3 {[%clk 0:00:33]}  Rd8 {[%clk 0:02:11]} 35. Nxd5 {[%clk 0:00:33]}  cxd5 {[%clk 0:02:09]} 36. Qd4 {[%clk 0:00:31]}  Qd6 {[%clk 0:02:04]} 37. Rb1 {[%clk 0:00:30]}  Rc8 {[%clk 0:01:58]} 38. g3 {[%clk 0:00:30]}  Rc4 {[%clk 0:01:56]} 39. Qd3 {[%clk 0:00:28]}  Rxa4 {[%clk 0:01:54]} 40. Rb5 {[%clk 0:00:26]}  d4 {[%clk 0:01:50]} 41. Rb8+ {[%clk 0:00:26]}  Qxb8 {[%clk 0:01:49]} 42. Qb3 {[%clk 0:00:26]}  Qxb3 {[%clk 0:01:49]} 0-1


[Site "https://www.chess.com"]